[Event "Late-Titled-Tuesday-Blitz-November-28-2023"]
[Site "Chess.com"]
[Date "2023.11.28"]
[Round "1"]
[White "SaqoChess_Twitch"]
[Black "Suspenser17"]
[Result "1-0"]
[WhiteElo "2636"]
[BlackElo "2331"]
[TimeControl "180+1"]
[EndTime "14:06:00 PST"]
[Termination "SaqoChess_Twitch won by checkmate"]

1. d4 {[%clk 0:03:00.9]} 1... d5 {[%clk 0:02:59.2]} 2. c4 {[%clk 0:03:01.5]}
2... c6 {[%clk 0:02:58.9]} 3. Nc3 {[%clk 0:03:01.3]} 3... Nf6 {[%clk 0:02:58.7]}
4. e3 {[%clk 0:03:00.1]} 4... e6 {[%clk 0:02:56.9]} 5. Nf3 {[%clk 0:02:59.3]}
5... Nbd7 {[%clk 0:02:56]} 6. Bd3 {[%clk 0:02:59.6]} 6... dxc4 {[%clk
0:02:55.7]} 7. Bxc4 {[%clk 0:02:59.7]} 7... b5 {[%clk 0:02:56.6]} 8. Bd3 {[%clk
0:02:57.3]} 8... Bd6 {[%clk 0:02:57.2]} 9. e4 {[%clk 0:02:50.7]} 9... e5 {[%clk
0:02:57]} 10. O-O {[%clk 0:02:49.5]} 10... Bb7 {[%clk 0:02:55.7]} 11. Bg5 {[%clk
0:02:46.9]} 11... exd4 {[%clk 0:02:52.2]} 12. Nxd4 {[%clk 0:02:44.8]} 12... Ne5
{[%clk 0:02:52.9]} 13. Be2 {[%clk 0:02:40.7]} 13... Bc5 {[%clk 0:02:47]} 14. Nf5
{[%clk 0:02:36.8]} 14... O-O {[%clk 0:02:40.6]} 15. Qc1 {[%clk 0:02:22.5]} 15...
Bc8 {[%clk 0:02:30.9]} 16. Rd1 {[%clk 0:02:20.7]} 16... Qc7 {[%clk 0:02:23.4]}
17. Bxf6 {[%clk 0:01:56.3]} 17... gxf6 {[%clk 0:02:22.9]} 18. Qh6 {[%clk
0:01:55.4]} 18... Bxf5 {[%clk 0:02:21.8]} 19. exf5 {[%clk 0:01:56.3]} 19... Qe7
{[%clk 0:02:12]} 20. Ne4 {[%clk 0:01:55.6]} 20... Ng4 {[%clk 0:02:03.1]} 21. Qf4
{[%clk 0:01:33.2]} 21... Nxf2 {[%clk 0:01:52.3]} 22. Nxc5 {[%clk 0:01:29.7]}
22... Nxd1 {[%clk 0:01:16.6]} 23. Ne4 {[%clk 0:01:29.9]} 23... Nxb2 {[%clk
0:01:12]} 24. Rb1 {[%clk 0:01:23.2]} 24... Nc4 {[%clk 0:01:06]} 25. Rb3 {[%clk
0:01:23.2]} 25... Qe5 {[%clk 0:00:56.6]} 26. Qh6 {[%clk 0:01:11.2]} 26... Qd4+
{[%clk 0:00:12.7]} 27. Nf2 {[%clk 0:01:09.8]} 27... Kh8 {[%clk 0:00:05.3]} 28.
Rh3 {[%clk 0:01:09.4]} 28... Qf4 {[%clk 0:00:01]} 29. Qxh7# {[%clk 0:01:09.2]}
1-0

[Event "Late-Titled-Tuesday-Blitz-November-28-2023"]
[Site "Chess.com"]
[Date "2023.11.28"]
[Round "1"]
[White "Hypercar"]
[Black "Grischuk"]
[Result "1/2-1/2"]
[WhiteElo "2506"]
[BlackElo "3079"]
[TimeControl "180+1"]
[EndTime "14:06:02 PST"]
[Termination "Game drawn by repetition"]

1. d4 {[%clk 0:03:00.5]} 1... e6 {[%clk 0:03:00]} 2. c4 {[%clk 0:03:00.3]} 2...
b6 {[%clk 0:03:00.3]} 3. Nf3 {[%clk 0:03:01.1]} 3... Bb7 {[%clk 0:03:00.2]} 4.
g3 {[%clk 0:03:01.6]} 4... Bb4+ {[%clk 0:02:59.5]} 5. Nbd2 {[%clk 0:03:00.1]}
5... c5 {[%clk 0:02:58.1]} 6. dxc5 {[%clk 0:02:58.9]} 6... Bxc5 {[%clk 0:02:59]}
7. Bg2 {[%clk 0:02:59.3]} 7... Nf6 {[%clk 0:02:59.2]} 8. O-O {[%clk 0:02:58.7]}
8... O-O {[%clk 0:02:59.5]} 9. b3 {[%clk 0:02:59.3]} 9... Be7 {[%clk 0:02:58.1]}
10. Bb2 {[%clk 0:02:59.6]} 10... a6 {[%clk 0:02:56.8]} 11. Qc2 {[%clk
0:02:57.2]} 11... h6 {[%clk 0:02:56]} 12. Rad1 {[%clk 0:02:57]} 12... Qc7 {[%clk
0:02:54.4]} 13. Qb1 {[%clk 0:02:54.5]} 13... d6 {[%clk 0:02:54.2]} 14. Ne1
{[%clk 0:02:45.4]} 14... Nbd7 {[%clk 0:02:52.7]} 15. Bxb7 {[%clk 0:02:44.5]}
15... Qxb7 {[%clk 0:02:53.6]} 16. Ng2 {[%clk 0:02:43.6]} 16... b5 {[%clk
0:02:48.8]} 17. Rc1 {[%clk 0:02:39.5]} 17... Rfd8 {[%clk 0:02:37.6]} 18. Rfd1
{[%clk 0:02:37.2]} 18... Rac8 {[%clk 0:02:35.4]} 19. Nf4 {[%clk 0:02:27.3]}
19... Ne5 {[%clk 0:02:29.3]} 20. Bxe5 {[%clk 0:02:18.7]} 20... dxe5 {[%clk
0:02:29.2]} 21. Ng2 {[%clk 0:02:15.7]} 21... Bb4 {[%clk 0:02:14.5]} 22. Nf3
{[%clk 0:02:05.6]} 22... Rxd1+ {[%clk 0:02:13.5]} 23. Rxd1 {[%clk 0:02:05.2]}
23... e4 {[%clk 0:02:14.4]} 24. Nd4 {[%clk 0:01:39.2]} 24... bxc4 {[%clk
0:02:10.3]} 25. bxc4 {[%clk 0:01:40.1]} 25... Qe7 {[%clk 0:02:01.9]} 26. Rc1
{[%clk 0:01:36.5]} 26... Bc5 {[%clk 0:01:25.5]} 27. Nb3 {[%clk 0:01:32.5]} 27...
Ba7 {[%clk 0:01:25.3]} 28. Qc2 {[%clk 0:01:27.2]} 28... Qb4 {[%clk 0:00:51.4]}
29. e3 {[%clk 0:01:22.1]} 29... a5 {[%clk 0:00:46.3]} 30. h3 {[%clk 0:01:17.9]}
30... a4 {[%clk 0:00:38.7]} 31. Nd4 {[%clk 0:01:14.8]} 31... Bxd4 {[%clk
0:00:14.5]} 32. exd4 {[%clk 0:01:14.9]} 32... Rd8 {[%clk 0:00:12.3]} 33. Rd1
{[%clk 0:01:12.5]} 33... Rc8 {[%clk 0:00:11.4]} 34. Rc1 {[%clk 0:01:12.4]} 34...
Rd8 {[%clk 0:00:11.4]} 35. Rd1 {[%clk 0:01:12.7]} 35... Rc8 {[%clk 0:00:12]} 36.
Rc1 {[%clk 0:01:13.1]} 1/2-1/2

[Event "Late-Titled-Tuesday-Blitz-November-28-2023"]
[Site "Chess.com"]
[Date "2023.11.28"]
[Round "1"]
[White "Yurasova_Daria"]
[Black "AryanTari"]
[Result "0-1"]
[WhiteElo "2476"]
[BlackElo "2973"]
[TimeControl "180+1"]
[EndTime "14:06:05 PST"]
[Termination "AryanTari won by checkmate"]

1. e4 {[%clk 0:02:52.4]} 1... Nc6 {[%clk 0:02:43.8]} 2. d4 {[%clk 0:02:50.2]}
2... d6 {[%clk 0:02:43.7]} 3. Nf3 {[%clk 0:02:48.4]} 3... Bg4 {[%clk 0:02:37.8]}
4. Be2 {[%clk 0:02:47.8]} 4... Nf6 {[%clk 0:02:33.4]} 5. Nc3 {[%clk 0:02:39.4]}
5... e5 {[%clk 0:02:33.2]} 6. d5 {[%clk 0:02:26.7]} 6... Bxf3 {[%clk 0:02:31.1]}
7. Bxf3 {[%clk 0:02:26.4]} 7... Nd4 {[%clk 0:02:30.7]} 8. Be3 {[%clk 0:02:23.6]}
8... g6 {[%clk 0:02:27.1]} 9. Be2 {[%clk 0:02:06.9]} 9... Bg7 {[%clk 0:02:22.9]}
10. f3 {[%clk 0:02:07]} 10... O-O {[%clk 0:02:21.2]} 11. Qd2 {[%clk 0:02:06.3]}
11... Nh5 {[%clk 0:02:14.5]} 12. O-O-O {[%clk 0:01:57.8]} 12... c5 {[%clk
0:02:08.5]} 13. g3 {[%clk 0:01:52.9]} 13... a6 {[%clk 0:02:05.2]} 14. Rdf1
{[%clk 0:01:23.2]} 14... b5 {[%clk 0:02:02.2]} 15. Bd1 {[%clk 0:01:22.2]} 15...
Qa5 {[%clk 0:01:54.7]} 16. Kb1 {[%clk 0:01:14.4]} 16... b4 {[%clk 0:01:54.2]}
17. Ne2 {[%clk 0:01:14.3]} 17... Rab8 {[%clk 0:01:53.7]} 18. g4 {[%clk 0:01:09]}
18... Nf4 {[%clk 0:01:50.4]} 19. Bxf4 {[%clk 0:00:46.4]} 19... exf4 {[%clk
0:01:51.3]} 20. Nxd4 {[%clk 0:00:46.8]} 20... Bxd4 {[%clk 0:01:50.4]} 21. h4
{[%clk 0:00:32.8]} 21... Bc3 {[%clk 0:01:25.4]} 22. Qc1 {[%clk 0:00:29.1]} 22...
c4 {[%clk 0:01:19.1]} 23. h5 {[%clk 0:00:19.9]} 23... g5 {[%clk 0:01:19.4]} 24.
h6 {[%clk 0:00:18.6]} 24... f6 {[%clk 0:01:18.2]} 25. Ka1 {[%clk 0:00:14.7]}
25... Be5 {[%clk 0:01:15.5]} 26. Be2 {[%clk 0:00:14]} 26... b3 {[%clk
0:01:14.5]} 27. cxb3 {[%clk 0:00:12.6]} 27... cxb3 {[%clk 0:01:14.6]} 28. Bc4
{[%clk 0:00:03.2]} 28... Qxa2# {[%clk 0:01:04.1]} 0-1

[Event "Late-Titled-Tuesday-Blitz-November-28-2023"]
[Site "Chess.com"]
[Date "2023.11.28"]
[Round "1"]
[White "le-castor-faineant"]
[Black "dcremisi"]
[Result "0-1"]
[WhiteElo "2245"]
[BlackElo "2580"]
[TimeControl "180+1"]
[EndTime "14:06:06 PST"]
[Termination "dcremisi won by resignation"]

1. e4 {[%clk 0:03:00.9]} 1... e6 {[%clk 0:03:00]} 2. d4 {[%clk 0:03:00.1]} 2...
d5 {[%clk 0:03:00.3]} 3. Nc3 {[%clk 0:02:56.6]} 3... Bb4 {[%clk 0:03:00.1]} 4.
e5 {[%clk 0:02:54.1]} 4... c5 {[%clk 0:03:00.4]} 5. Qg4 {[%clk 0:02:52.5]} 5...
Ne7 {[%clk 0:03:00.1]} 6. Qxg7 {[%clk 0:02:50.3]} 6... Rg8 {[%clk 0:02:59.4]} 7.
Qxh7 {[%clk 0:02:50.8]} 7... cxd4 {[%clk 0:02:59.5]} 8. a3 {[%clk 0:02:48.4]}
8... Qa5 {[%clk 0:02:59.6]} 9. axb4 {[%clk 0:02:43.9]} 9... Qxa1 {[%clk
0:02:59.2]} 10. Nce2 {[%clk 0:02:44.2]} 10... Nbc6 {[%clk 0:02:59.3]} 11. Nf3
{[%clk 0:02:38.9]} 11... Nxb4 {[%clk 0:02:58.3]} 12. Nfxd4 {[%clk 0:02:38.9]}
12... Bd7 {[%clk 0:02:45.3]} 13. c3 {[%clk 0:02:35.5]} 13... Rc8 {[%clk
0:02:29.9]} 14. Kd2 {[%clk 0:02:29.1]} 14... Nbc6 {[%clk 0:02:21.8]} 15. f4
{[%clk 0:02:25.9]} 15... Na5 {[%clk 0:02:11.7]} 16. Ke3 {[%clk 0:02:17.1]} 16...
Nc4+ {[%clk 0:02:02.7]} 17. Kf2 {[%clk 0:02:10.8]} 17... Nxb2 {[%clk 0:02:02.9]}
18. Bxb2 {[%clk 0:02:00]} 18... Qxb2 {[%clk 0:02:01.6]} 19. g3 {[%clk 0:01:55]}
19... a5 {[%clk 0:01:51.9]} 20. Bg2 {[%clk 0:01:52.8]} 20... Rxc3 {[%clk
0:01:36.7]} 21. Rb1 {[%clk 0:01:51.6]} 21... Qd2 {[%clk 0:01:36.4]} 22. Rxb7
{[%clk 0:01:38.2]} 22... Qe3+ {[%clk 0:01:35.1]} 23. Kf1 {[%clk 0:01:32.9]}
23... a4 {[%clk 0:01:31]} 24. f5 {[%clk 0:00:33.4]} 24... Rd3 {[%clk 0:01:14.3]}
25. Rb8+ {[%clk 0:00:20.1]} 25... Bc8 {[%clk 0:01:14.5]} 26. Rxc8+ {[%clk
0:00:19.8]} 26... Kd7 {[%clk 0:01:14.3]} 27. fxe6+ {[%clk 0:00:15.8]} 27... Kxc8
{[%clk 0:01:12.9]} 28. Nc2 {[%clk 0:00:10.3]} 28... Rd1+ {[%clk 0:01:11.9]} 29.
Ne1 {[%clk 0:00:10.4]} 29... Qd2 {[%clk 0:01:09.2]} 0-1

[Event "Late-Titled-Tuesday-Blitz-November-28-2023"]
[Site "Chess.com"]
[Date "2023.11.28"]
[Round "1"]
[White "stolencandy13"]
[Black "LUISMIGUELOV"]
[Result "1-0"]
[WhiteElo "2553"]
[BlackElo "2206"]
[TimeControl "180+1"]
[EndTime "14:06:11 PST"]
[Termination "stolencandy13 won by resignation"]

1. e4 {[%clk 0:02:59.8]} 1... c6 {[%clk 0:03:00]} 2. d4 {[%clk 0:02:59.6]} 2...
d5 {[%clk 0:03:00.6]} 3. e5 {[%clk 0:03:00.5]} 3... c5 {[%clk 0:03:00.7]} 4.
dxc5 {[%clk 0:02:58.5]} 4... Nc6 {[%clk 0:02:57.6]} 5. Nf3 {[%clk 0:02:55.7]}
5... Bg4 {[%clk 0:02:56.9]} 6. c3 {[%clk 0:02:52.1]} 6... a5 {[%clk 0:02:55.5]}
7. Bb5 {[%clk 0:02:49.8]} 7... e6 {[%clk 0:02:54.8]} 8. Qa4 {[%clk 0:02:33.7]}
8... Bxf3 {[%clk 0:02:28.2]} 9. Bxc6+ {[%clk 0:02:32.5]} 9... bxc6 {[%clk
0:02:26.9]} 10. Qxc6+ {[%clk 0:02:33.4]} 10... Ke7 {[%clk 0:02:25.4]} 11. gxf3
{[%clk 0:02:23.8]} 11... Rc8 {[%clk 0:02:25.2]} 12. Qd6+ {[%clk 0:02:16.5]}
12... Ke8 {[%clk 0:02:24.1]} 13. Qxd8+ {[%clk 0:02:16.5]} 13... Kxd8 {[%clk
0:02:19.6]} 14. b4 {[%clk 0:02:16.5]} 14... Ne7 {[%clk 0:02:07.4]} 15. Bg5
{[%clk 0:02:10]} 15... h6 {[%clk 0:02:05.5]} 16. Bxe7+ {[%clk 0:02:09.7]} 16...
Bxe7 {[%clk 0:02:05.5]} 17. Nd2 {[%clk 0:02:06.5]} 17... Kd7 {[%clk 0:01:55]}
18. Ke2 {[%clk 0:02:01.7]} 18... Rc7 {[%clk 0:01:52.7]} 19. Nb3 {[%clk
0:01:59.1]} 19... axb4 {[%clk 0:01:45]} 20. cxb4 {[%clk 0:01:59]} 20... Rb8
{[%clk 0:01:44.6]} 21. a3 {[%clk 0:01:58.6]} 21... f6 {[%clk 0:01:36.8]} 22. f4
{[%clk 0:01:58.9]} 22... g5 {[%clk 0:01:32]} 23. fxg5 {[%clk 0:01:48.6]} 23...
hxg5 {[%clk 0:01:30.7]} 24. exf6 {[%clk 0:01:47.7]} 24... Bxf6 {[%clk
0:01:30.5]} 25. Ra2 {[%clk 0:01:40.1]} 25... Ra7 {[%clk 0:01:29.3]} 26. Nc1
{[%clk 0:01:35]} 26... Kc6 {[%clk 0:01:24]} 27. Kd3 {[%clk 0:01:33.5]} 27... e5
{[%clk 0:01:22.7]} 28. Rg1 {[%clk 0:01:31.4]} 28... e4+ {[%clk 0:01:22.5]} 29.
Kc2 {[%clk 0:01:27.2]} 29... d4 {[%clk 0:01:20.6]} 30. Kb3 {[%clk 0:01:23.8]}
30... d3 {[%clk 0:01:20.2]} 31. f3 {[%clk 0:01:19.6]} 31... exf3 {[%clk
0:01:09.1]} 32. Nxd3 {[%clk 0:01:17.8]} 32... Rd8 {[%clk 0:01:08.1]} 33. Ne1
{[%clk 0:01:12.6]} 33... f2 {[%clk 0:00:56.2]} 34. Rxf2 {[%clk 0:01:08.4]} 34...
Bd4 {[%clk 0:00:56.5]} 35. Rd2 {[%clk 0:01:06.8]} 35... Bxc5 {[%clk 0:00:52.6]}
36. Rxd8 {[%clk 0:01:03.7]} 36... Bxg1 {[%clk 0:00:52.1]} 37. Nf3 {[%clk
0:01:00.5]} 37... Be3 {[%clk 0:00:50]} 38. Re8 {[%clk 0:00:58.7]} 38... Bf4
{[%clk 0:00:49.2]} 39. a4 {[%clk 0:00:56.5]} 39... g4 {[%clk 0:00:46.4]} 40.
Ne5+ {[%clk 0:00:54.4]} 40... Kd5 {[%clk 0:00:43.8]} 41. Nxg4 {[%clk 0:00:52.1]}
41... Rg7 {[%clk 0:00:42.7]} 42. h3 {[%clk 0:00:51.3]} 42... Rh7 {[%clk
0:00:42.4]} 43. Nf6+ {[%clk 0:00:51]} 1-0

[Event "Late-Titled-Tuesday-Blitz-November-28-2023"]
[Site "Chess.com"]
[Date "2023.11.28"]
[Round "1"]
[White "joppie2"]
[Black "nindjaxx8"]
[Result "1-0"]
[WhiteElo "3005"]
[BlackElo "2482"]
[TimeControl "180+1"]
[EndTime "14:06:12 PST"]
[Termination "joppie2 won by resignation"]

1. e4 {[%clk 0:03:00.9]} 1... e6 {[%clk 0:02:57.7]} 2. d4 {[%clk 0:03:00.5]}
2... d5 {[%clk 0:02:57.3]} 3. Nc3 {[%clk 0:03:01]} 3... dxe4 {[%clk 0:02:37.5]}
4. Nxe4 {[%clk 0:03:00.6]} 4... Nd7 {[%clk 0:02:37.9]} 5. Nf3 {[%clk 0:03:00.9]}
5... Ngf6 {[%clk 0:02:37.8]} 6. Nxf6+ {[%clk 0:02:59.5]} 6... Nxf6 {[%clk
0:02:38.7]} 7. g3 {[%clk 0:02:59.8]} 7... b6 {[%clk 0:02:37.3]} 8. Ne5 {[%clk
0:02:54.3]} 8... Bd7 {[%clk 0:02:16]} 9. Bg2 {[%clk 0:02:51.8]} 9... Rb8 {[%clk
0:02:15.1]} 10. Nc6 {[%clk 0:02:51.3]} 10... Bxc6 {[%clk 0:02:13.4]} 11. Bxc6+
{[%clk 0:02:52.2]} 11... Nd7 {[%clk 0:02:13.4]} 12. c3 {[%clk 0:02:46.7]} 12...
b5 {[%clk 0:02:10.7]} 13. Qe2 {[%clk 0:02:42]} 13... a6 {[%clk 0:02:10.3]} 14.
d5 {[%clk 0:02:41.9]} 14... Qe7 {[%clk 0:02:01.2]} 15. Bg5 {[%clk 0:02:27.8]}
15... Qxg5 {[%clk 0:01:40.3]} 16. dxe6 {[%clk 0:02:27.9]} 16... fxe6 {[%clk
0:01:41.2]} 17. Qxe6+ {[%clk 0:02:28.3]} 17... Qe7 {[%clk 0:01:41.6]} 18. Bxd7+
{[%clk 0:02:28.7]} 18... Kd8 {[%clk 0:01:41.8]} 19. O-O-O {[%clk 0:02:29.6]}
19... Qxe6 {[%clk 0:01:41.4]} 20. Bxe6+ {[%clk 0:02:30.5]} 20... Ke7 {[%clk
0:01:41.8]} 21. Rhe1 {[%clk 0:02:30.2]} 21... Kf6 {[%clk 0:01:41.1]} 22. Rd7
{[%clk 0:02:20.5]} 22... Bd6 {[%clk 0:01:39.5]} 23. Rf7+ {[%clk 0:02:12.1]}
23... Kg6 {[%clk 0:01:39.9]} 24. f4 {[%clk 0:02:12.6]} 24... Rhe8 {[%clk
0:01:37.9]} 25. f5+ {[%clk 0:02:12.6]} 25... Kh6 {[%clk 0:01:36.9]} 26. Re4
{[%clk 0:02:13.2]} 26... Re7 {[%clk 0:01:06.7]} 27. Rh4+ {[%clk 0:01:47.5]}
27... Kg5 {[%clk 0:01:06.5]} 28. Rxe7 {[%clk 0:01:47.1]} 28... Bxe7 {[%clk
0:01:07.4]} 29. Rxh7 {[%clk 0:01:47.5]} 29... Bf6 {[%clk 0:01:07.7]} 30. Rh4
{[%clk 0:01:43.2]} 30... Rd8 {[%clk 0:01:07.1]} 31. Kc2 {[%clk 0:01:42.5]} 31...
c5 {[%clk 0:00:59.1]} 32. Re4 {[%clk 0:01:42.6]} 32... Kh5 {[%clk 0:00:56.9]}
33. h4 {[%clk 0:01:41.4]} 33... c4 {[%clk 0:00:54.1]} 34. Bf7+ {[%clk
0:01:41.1]} 34... Kh6 {[%clk 0:00:52.6]} 35. Re6 {[%clk 0:01:41.6]} 35... Kh7
{[%clk 0:00:44]} 36. Bg6+ {[%clk 0:01:38.5]} 36... Kh6 {[%clk 0:00:42.9]} 37.
Bf7 {[%clk 0:01:38.5]} 37... Kh7 {[%clk 0:00:42.8]} 38. Rxa6 {[%clk 0:01:37]}
38... Rd3 {[%clk 0:00:42.7]} 39. Bg6+ {[%clk 0:01:37.2]} 39... Kh6 {[%clk
0:00:42.3]} 40. Ra8 {[%clk 0:01:35.4]} 40... Bd8 {[%clk 0:00:38.4]} 41. b4
{[%clk 0:01:24.6]} 41... Rd6 {[%clk 0:00:24.9]} 42. a4 {[%clk 0:01:24.5]} 42...
bxa4 {[%clk 0:00:20.2]} 43. Rxd8 {[%clk 0:01:24.7]} 43... Rxd8 {[%clk
0:00:19.5]} 44. g4 {[%clk 0:01:25.6]} 1-0

[Event "Late-Titled-Tuesday-Blitz-November-28-2023"]
[Site "Chess.com"]
[Date "2023.11.28"]
[Round "1"]
[White "Andrei_Skvortsov"]
[Black "sakkikuska"]
[Result "1-0"]
[WhiteElo "2734"]
[BlackElo "2399"]
[TimeControl "180+1"]
[EndTime "14:06:12 PST"]
[Termination "Andrei_Skvortsov won by resignation"]

1. e4 {[%clk 0:03:00.9]} 1... c5 {[%clk 0:02:56.7]} 2. d4 {[%clk 0:02:58.8]}
2... cxd4 {[%clk 0:02:56.4]} 3. Qxd4 {[%clk 0:02:59.7]} 3... Nc6 {[%clk
0:02:53.4]} 4. Qd3 {[%clk 0:02:55.6]} 4... e6 {[%clk 0:02:44.6]} 5. Nc3 {[%clk
0:02:42.5]} 5... Nf6 {[%clk 0:02:35.4]} 6. Bf4 {[%clk 0:02:41.7]} 6... d6 {[%clk
0:02:23]} 7. O-O-O {[%clk 0:02:40.8]} 7... e5 {[%clk 0:02:19.8]} 8. Bg5 {[%clk
0:02:41.1]} 8... Be6 {[%clk 0:02:13.4]} 9. Nge2 {[%clk 0:02:37]} 9... a6 {[%clk
0:02:12.1]} 10. f4 {[%clk 0:02:34.7]} 10... exf4 {[%clk 0:02:02.9]} 11. a3
{[%clk 0:02:27.5]} 11... Ne5 {[%clk 0:01:39]} 12. Qd4 {[%clk 0:02:24.1]} 12...
Nc6 {[%clk 0:01:31.7]} 13. Qf2 {[%clk 0:02:19.5]} 13... h6 {[%clk 0:01:22.1]}
14. Bxf4 {[%clk 0:02:18.5]} 14... Be7 {[%clk 0:01:12.6]} 15. h3 {[%clk
0:02:16.9]} 15... b5 {[%clk 0:00:59.6]} 16. g4 {[%clk 0:02:16.1]} 16... b4
{[%clk 0:00:51.4]} 17. axb4 {[%clk 0:02:15.4]} 17... Qb8 {[%clk 0:00:48.2]} 18.
Nd4 {[%clk 0:02:12.5]} 18... Ne5 {[%clk 0:00:41.4]} 19. Nxe6 {[%clk 0:02:10.5]}
19... fxe6 {[%clk 0:00:37.2]} 20. Qd4 {[%clk 0:02:01.3]} 20... O-O {[%clk
0:00:24.8]} 21. Bc4 {[%clk 0:01:58.2]} 21... Nxc4 {[%clk 0:00:23.7]} 22. Qxc4
{[%clk 0:01:57.4]} 22... Kh8 {[%clk 0:00:19.3]} 23. Qxe6 {[%clk 0:01:56.1]}
23... Qxb4 {[%clk 0:00:19.8]} 24. Qxe7 {[%clk 0:01:31.6]} 24... Rab8 {[%clk
0:00:20.2]} 25. Rd3 {[%clk 0:01:23.4]} 25... Qxb2+ {[%clk 0:00:19.1]} 26. Kd2
{[%clk 0:01:23.9]} 26... Rbe8 {[%clk 0:00:17.3]} 27. Qxd6 {[%clk 0:01:18.9]}
27... Rf7 {[%clk 0:00:14.7]} 28. Rb1 {[%clk 0:01:16.2]} 28... Qxc3+ {[%clk
0:00:12]} 29. Rxc3 {[%clk 0:01:07.1]} 29... Nxe4+ {[%clk 0:00:12.6]} 30. Kc1
{[%clk 0:01:06.5]} 30... Nxd6 {[%clk 0:00:11.3]} 31. Bxd6 {[%clk 0:01:04.3]}
31... Re1+ {[%clk 0:00:11.5]} 32. Kb2 {[%clk 0:01:04.8]} 32... Rb7+ {[%clk
0:00:11.9]} 33. Rb3 {[%clk 0:01:04.4]} 33... Rd7 {[%clk 0:00:11.7]} 1-0

[Event "Late-Titled-Tuesday-Blitz-November-28-2023"]
[Site "Chess.com"]
[Date "2023.11.28"]
[Round "1"]
[White "Sacbutt"]
[Black "ChessSwole"]
[Result "0-1"]
[WhiteElo "2355"]
[BlackElo "2675"]
[TimeControl "180+1"]
[EndTime "14:06:19 PST"]
[Termination "ChessSwole won by checkmate"]

1. e4 {[%clk 0:03:00.9]} 1... e6 {[%clk 0:02:59.5]} 2. d4 {[%clk 0:03:00.3]}
2... d5 {[%clk 0:02:59.9]} 3. e5 {[%clk 0:02:59.5]} 3... c5 {[%clk 0:03:00]} 4.
c3 {[%clk 0:02:59.8]} 4... Ne7 {[%clk 0:02:59.5]} 5. dxc5 {[%clk 0:02:58.6]}
5... Nec6 {[%clk 0:02:59.6]} 6. b4 {[%clk 0:02:57.1]} 6... Nxe5 {[%clk
0:02:53.4]} 7. Nf3 {[%clk 0:02:53.4]} 7... Nxf3+ {[%clk 0:02:50.2]} 8. Qxf3
{[%clk 0:02:54.3]} 8... Be7 {[%clk 0:02:50.4]} 9. Bd3 {[%clk 0:02:51]} 9... a5
{[%clk 0:02:48.7]} 10. Bb2 {[%clk 0:02:40.5]} 10... b6 {[%clk 0:02:44.1]} 11.
cxb6 {[%clk 0:02:35.7]} 11... axb4 {[%clk 0:02:41.2]} 12. cxb4 {[%clk
0:02:33.4]} 12... Bxb4+ {[%clk 0:02:41.5]} 13. Nd2 {[%clk 0:02:32.5]} 13... O-O
{[%clk 0:02:26.6]} 14. Qg4 {[%clk 0:01:04.6]} 14... Bxd2+ {[%clk 0:02:25.6]} 15.
Kxd2 {[%clk 0:01:04.5]} 15... e5 {[%clk 0:02:24.9]} 16. Qg3 {[%clk 0:00:55.5]}
16... Nc6 {[%clk 0:02:10.5]} 17. Rhc1 {[%clk 0:00:41.9]} 17... Qxb6 {[%clk
0:02:07.2]} 18. Bxe5 {[%clk 0:00:11.9]} 18... Nxe5 {[%clk 0:02:04.4]} 19. Qxe5
{[%clk 0:00:12.8]} 19... Qxf2+ {[%clk 0:02:04.5]} 20. Qe2 {[%clk 0:00:13.5]}
20... Qf4+ {[%clk 0:02:03.6]} 21. Qe3 {[%clk 0:00:13]} 21... Qb4+ {[%clk
0:02:02.5]} 22. Ke2 {[%clk 0:00:11.9]} 22... Ba6 {[%clk 0:01:48.5]} 23. Kf1
{[%clk 0:00:04.8]} 23... Rfe8 {[%clk 0:01:43.4]} 24. Qf3 {[%clk 0:00:02.4]}
24... Bc4 {[%clk 0:01:28.9]} 25. Bxc4 {[%clk 0:00:02.1]} 25... dxc4 {[%clk
0:01:29.8]} 26. Qc3 {[%clk 0:00:02.1]} 26... Qe7 {[%clk 0:01:01.4]} 27. Qxc4
{[%clk 0:00:02.2]} 27... Ra5 {[%clk 0:00:50.7]} 28. a4 {[%clk 0:00:02.3]} 28...
Qe3 {[%clk 0:00:48.4]} 29. Qc3 {[%clk 0:00:01.2]} 29... Rf5# {[%clk 0:00:48.3]}
0-1

[Event "Late-Titled-Tuesday-Blitz-November-28-2023"]
[Site "Chess.com"]
[Date "2023.11.28"]
[Round "1"]
[White "Koksal06"]
[Black "jamengrand"]
[Result "1-0"]
[WhiteElo "2608"]
[BlackElo "2305"]
[TimeControl "180+1"]
[EndTime "14:06:20 PST"]
[Termination "Koksal06 won by resignation"]

1. c4 {[%clk 0:03:00.3]} 1... e6 {[%clk 0:02:08.5]} 2. Nc3 {[%clk 0:03:00.7]}
2... d5 {[%clk 0:02:08.3]} 3. d4 {[%clk 0:03:01.4]} 3... Nf6 {[%clk 0:02:07.7]}
4. Nf3 {[%clk 0:03:02.1]} 4... c5 {[%clk 0:02:07.2]} 5. cxd5 {[%clk 0:03:00.5]}
5... Nxd5 {[%clk 0:02:07]} 6. e4 {[%clk 0:02:52.9]} 6... Nxc3 {[%clk 0:02:06.3]}
7. bxc3 {[%clk 0:02:53.8]} 7... cxd4 {[%clk 0:02:06.7]} 8. cxd4 {[%clk
0:02:54.7]} 8... Bb4+ {[%clk 0:02:06.6]} 9. Bd2 {[%clk 0:02:55.5]} 9... Bxd2+
{[%clk 0:02:07.1]} 10. Qxd2 {[%clk 0:02:55.7]} 10... O-O {[%clk 0:02:08]} 11.
Bc4 {[%clk 0:02:53.1]} 11... b6 {[%clk 0:02:06.8]} 12. O-O {[%clk 0:02:53.6]}
12... Bb7 {[%clk 0:02:06.7]} 13. Qe3 {[%clk 0:02:54]} 13... Nd7 {[%clk
0:02:06.3]} 14. Rfd1 {[%clk 0:02:53.2]} 14... h6 {[%clk 0:02:05.6]} 15. h3
{[%clk 0:02:52.6]} 15... Rc8 {[%clk 0:02:04.2]} 16. Bb3 {[%clk 0:02:53.1]} 16...
Qe7 {[%clk 0:02:03.1]} 17. Qf4 {[%clk 0:02:48.6]} 17... Qf6 {[%clk 0:01:59.3]}
18. Qe3 {[%clk 0:02:35]} 18... Qe7 {[%clk 0:01:57.4]} 19. Rac1 {[%clk
0:02:33.7]} 19... Nf6 {[%clk 0:01:56.4]} 20. Nd2 {[%clk 0:02:20.2]} 20... Rxc1
{[%clk 0:01:49.6]} 21. Rxc1 {[%clk 0:02:21.1]} 21... Qa3 {[%clk 0:01:49.2]} 22.
Rc7 {[%clk 0:02:16.7]} 22... Ba8 {[%clk 0:01:36.2]} 23. f3 {[%clk 0:02:01.2]}
23... Ne8 {[%clk 0:01:27.9]} 24. Nc4 {[%clk 0:01:42]} 24... Qb4 {[%clk
0:01:19.5]} 25. Rxa7 {[%clk 0:01:41.8]} 25... b5 {[%clk 0:01:10.9]} 26. Ne5
{[%clk 0:01:39.4]} 26... Nf6 {[%clk 0:01:02.4]} 27. Rc7 {[%clk 0:01:30]} 27...
Qd6 {[%clk 0:00:56.8]} 28. Qc3 {[%clk 0:01:29.1]} 28... Rd8 {[%clk 0:00:55.7]}
29. Nxf7 {[%clk 0:01:25.1]} 29... Qxd4+ {[%clk 0:00:51.7]} 30. Qxd4 {[%clk
0:01:26]} 30... Rxd4 {[%clk 0:00:51.5]} 31. Bxe6 {[%clk 0:01:23.8]} 31... Kh7
{[%clk 0:00:50.7]} 32. Bf5+ {[%clk 0:01:22.5]} 32... Kg8 {[%clk 0:00:48.8]} 33.
Bg6 {[%clk 0:01:18.2]} 33... Rc4 {[%clk 0:00:32.7]} 34. Ra7 {[%clk 0:01:13.4]}
34... Rc8 {[%clk 0:00:30.3]} 35. Nd6 {[%clk 0:01:11.5]} 35... Rb8 {[%clk
0:00:29.9]} 36. Nf5 {[%clk 0:01:11.1]} 36... Nxe4 {[%clk 0:00:19.2]} 37. fxe4
{[%clk 0:01:06.9]} 37... Bxe4 {[%clk 0:00:18.3]} 38. Ne7+ {[%clk 0:01:07.2]}
38... Kf8 {[%clk 0:00:18.2]} 39. Bxe4 {[%clk 0:01:08.1]} 39... b4 {[%clk
0:00:17.5]} 40. Ng6+ {[%clk 0:01:07.7]} 1-0